[Event "European Womens-ch 2025"]
[Site "Rhodes"]
[Date "2025.04.08"]
[Round "8.7"]
[White "Javakhishvili, Lela"]
[Black "Vega Gutierrez, Sabrina"]
[Result "1-0"]
[Annotator "RC"]
[ECO "A07"]
[WhiteElo "2429"]
[BlackElo "2380"]
[PlyCount "83"]
[EventDate "2025.03.29"]
[EventType "swiss"]
[EventCountry "GRE"]
[SourceTitle "playchess.com"]
[Source "ChessBase"]
[SourceQuality "1"]
[TimeControl "40/5400+30:1800+30"]

1. Nf3 {[%emt 0:00:07]} d5 {[%emt 0:00:08]} 2. b3 {[%emt 0:00:13]} Nf6 {[%emt 0:01:57]} 3. Bb2 {[%emt 0:00:06]} Bf5 {[%emt 0:00:26]} 4. g3 {[%emt 0:00:37]} e6 {[%emt 0:01:14]} 5. Bg2 {[%emt 0:00:07]} h6 {[%emt 0:00:22]} 6. O-O {[%emt 0:00:35]} Be7 {[%emt 0:01:11]} 7. d3 {[%emt 0:00:09]} Bh7 {[%emt 0:01:17]} 8. Nbd2 {[%emt 0:00:14]} O-O {[%emt 0:01:02]} 9. Re1 {[%emt 0:00:15]} a5 {[%emt 0:01:44]} 10. a3 {[%emt 0:01:28]} c6 {[%emt 0:05:49]} 11. e4 {[%emt 0:00:33]} Nbd7 {[%emt 0:09:52]} 12. Qe2 {[%emt 0:01:00]} Qc7 {[%emt 0:01:42]} 13. Rac1 {[%emt 0:14:30]} Rfd8 {[%emt 0:05:18]} 14. exd5 {[%emt 0:10:13]} cxd5 {[%emt 0:01:55]} 15. Nd4 {[%emt 0:00:30]} Qb6 {[%emt 0:04:08]} 16. a4 {[%emt 0:01:35]} Ne8 {[%emt 0:07:08]} 17. Bxd5 {[%emt 0:19:36]} Nf8 {[%emt 0:43:43]} 18. Nc4 {[%emt 0:01:30]} Qc5 {[%emt 0:00:05]} 19. Bxe6 {[%emt 0:12:15]} Bf6 {[%emt 0:01:45]} 20. b4 {[%emt 0:08:11]} axb4 {[%emt 0:02:20]} 21. Nb3 {[%emt 0:00:26]} Qc7 {[%emt 0:01:43]} 22. Bh3 {[%emt 0:02:04]} Bxb2 {[%emt 0:00:46]} 23. Nxb2 {[%emt 0:00:05]} Nd6 {[%emt 0:03:24]} 24. Qe5 {[%emt 0:03:38]} b6 {[%emt 0:01:16]} 25. Qd4 {[%emt 0:03:01]} Qc3 {[%emt 0:01:20]} 26. Qxc3 {[%emt 0:01:12]} bxc3 {[%emt 0:00:02]} 27. Nd1 {[%emt 0:00:07]} Rxa4 {[%emt 0:01:48]} 28. Nxc3 {[%emt 0:00:09]} Ra7 {[%emt 0:00:30]} 29. Nd5 {[%emt 0:00:43]} Rb7 {[%emt 0:00:33]} 30. Ra1 {[%emt 0:04:46]} Kh8 {[%emt 0:00:29]} 31. Ra6 {[%emt 0:01:28]} Bf5 {[%emt 0:00:32]} 32. Bxf5 {[%emt 0:03:18]} Nxf5 {[%emt 0:00:02]} 33. Rxb6 {[%emt 0:00:44]} Rxb6 {[%emt 0:00:31]} 34. Nxb6 {[%emt 0:00:03]} Ne6 {[%emt 0:00:07]} 35. Kg2 {[%emt 0:01:04]} Nfd4 {[%emt 0:01:14]} 36. Nxd4 {[%emt 0:00:11]} Nxd4 {[%emt 0:00:03]} 37. c3 {[%emt 0:01:44]} Nb5 {[%emt 0:00:09]} 38. c4 {[%emt 0:00:15]} Nc3 {[%emt 0:00:14]} 39. Re3 {[%emt 0:04:45]} Rd6 {[%emt 0:01:06]} 40. c5 {[%emt 0:00:00]} Rd4 {[%emt 0:00:00]} 41. c6 {[%emt 0:02:09]} Nb5 {[%emt 0:01:50]} 42. Re5 {[%emt 0:00:39]} 1-0

[Event "European Womens-ch 2025"]
[Site "Rhodes"]
[Date "2025.04.08"]
[Round "8.8"]
[White "Roebers, Eline"]
[Black "Ushenina, Anna"]
[Result "0-1"]
[Annotator "RC"]
[ECO "B32"]
[WhiteElo "2367"]
[BlackElo "2428"]
[PlyCount "74"]
[EventDate "2025.03.29"]
[EventType "swiss"]
[EventCountry "GRE"]
[SourceTitle "playchess.com"]
[Source "ChessBase"]
[SourceQuality "1"]
[TimeControl "40/5400+30:1800+30"]

1. e4 {[%emt 0:00:02]} c5 {[%emt 0:00:32]} 2. Nf3 {[%emt 0:00:05]} Nc6 {[%emt 0:00:15]} 3. d4 {[%emt 0:00:05]} cxd4 {[%emt 0:00:05]} 4. Nxd4 {[%emt 0:00:03]} e5 {[%emt 0:00:07]} 5. Nb5 {[%emt 0:00:04]} d6 {[%emt 0:00:12]} 6. N1c3 {[%emt 0:00:23]} a6 {[%emt 0:00:07]} 7. Na3 {[%emt 0:00:04]} Be6 {[%emt 0:00:14]} 8. Nc4 {[%emt 0:01:37]} Rb8 {[%emt 0:00:13]} 9. a4 {[%emt 0:00:48]} Nb4 {[%emt 0:00:32]} 10. Nd5 {[%emt 0:01:24]} Bxd5 {[%emt 0:00:11]} 11. exd5 {[%emt 0:00:05]} Nf6 {[%emt 0:00:10]} 12. g3 {[%emt 0:12:31]} Nbxd5 {[%emt 0:00:32]} 13. Bg2 {[%emt 0:01:49]} Nc7 {[%emt 0:00:06]} 14. Be3 {[%emt 0:10:58]} Be7 {[%emt 0:17:27]} 15. Ba7 {[%emt 0:04:45]} Ra8 {[%emt 0:00:06]} 16. Bb6 {[%emt 0:00:04]} Rb8 {[%emt 0:00:06]} 17. Qd2 {[%emt 0:00:53]} d5 {[%emt 0:47:31]} 18. O-O-O {[%emt 0:34:21]} Nd7 {[%emt 0:04:47]} 19. Bxd5 {[%emt 0:02:11]} Nxb6 {[%emt 0:00:34]} 20. Nxb6 {[%emt 0:00:51]} Nxd5 {[%emt 0:11:37]} 21. Nxd5 {[%emt 0:01:15]} O-O {[%emt 0:00:08]} 22. Qe2 {[%emt 0:04:13]} Bf6 {[%emt 0:03:54]} 23. Kb1 {[%emt 0:06:01]} Re8 {[%emt 0:01:37]} 24. Rhe1 {[%emt 0:01:36]} Re6 {[%emt 0:05:19]} 25. Qe4 {[%emt 0:03:14]} h6 {[%emt 0:01:14]} 26. c4 {[%emt 0:11:02]} Qa5 {[%emt 0:04:07]} 27. Qc2 {[%emt 0:02:16]} b5 {[%emt 0:01:15]} 28. cxb5 {[%emt 0:00:04]} axb5 {[%emt 0:00:03]} 29. Qc7 {[%emt 0:00:30]} Qa8 {[%emt 0:01:07]} 30. a5 {[%emt 0:00:22]} Bd8 {[%emt 0:00:09]} 31. Qc2 {[%emt 0:01:33]} Qxa5 {[%emt 0:00:19]} 32. Re3 {[%emt 0:00:38]} b4 {[%emt 0:00:20]} 33. Qc4 {[%emt 0:00:11]} Bb6 {[%emt 0:01:21]} 34. Re2 {[%emt 0:00:48]} Bd4 {[%emt 0:00:26]} 35. f4 {[%emt 0:00:38]} b3 {[%emt 0:00:28]} 36. Kc1 {[%emt 0:00:08]} Rd8 {[%emt 0:00:40]} 37. f5 {[%emt 0:00:37]} Ree8 {[%emt 0:00:20]} 0-1

[Event "European Womens-ch 2025"]
[Site "Rhodes"]
[Date "2025.04.08"]
[Round "8.9"]
[White "Mammadova, Gulnar"]
[Black "Beydullayeva, Govhar"]
[Result "1/2-1/2"]
[Annotator "RC"]
[ECO "B52"]
[WhiteElo "2342"]
[BlackElo "2400"]
[PlyCount "29"]
[EventDate "2025.03.29"]
[EventType "swiss"]
[EventCountry "GRE"]
[SourceTitle "playchess.com"]
[Source "ChessBase"]
[SourceQuality "1"]
[TimeControl "40/5400+30:1800+30"]

1. e4 {[%emt 0:00:03]} c5 {[%emt 0:01:12]} 2. Nf3 {[%emt 0:00:14]} d6 {[%emt 0:00:05]} 3. Bb5+ {[%emt 0:00:16]} Bd7 {[%emt 0:00:26]} 4. Bxd7+ {[%emt 0:00:34]} Nxd7 {[%emt 0:00:09]} 5. O-O {[%emt 0:00:16]} e6 {[%emt 0:00:20]} 6. Qe2 {[%emt 0:00:22]} Be7 {[%emt 0:01:57]} 7. c3 {[%emt 0:01:32]} Ngf6 {[%emt 0:00:32]} 8. d4 {[%emt 0:01:19]} O-O {[%emt 0:00:10]} 9. Rd1 {[%emt 0:03:09]} cxd4 {[%emt 0:23:16]} 10. cxd4 {[%emt 0:02:41]} b5 {[%emt 0:02:14]} 11. e5 {[%emt 0:05:37]} dxe5 {[%emt 0:14:21]} 12. dxe5 {[%emt 0:00:17]} Nd5 {[%emt 0:00:03]} 13. Qxb5 {[%emt 0:04:59]} Rb8 {[%emt 0:12:50]} 14. Qe2 {[%emt 0:01:26]} Qc7 {[%emt 0:00:23]} 15. Nc3 {[%emt 0:04:45]} 1/2-1/2

[Event "European Womens-ch 2025"]
[Site "Rhodes"]
[Date "2025.04.08"]
[Round "8.10"]
[White "Maltsevskaya, Aleksandra"]
[Black "Smietanska, Wiktoria"]
[Result "1-0"]
[Annotator "RC"]
[ECO "B40"]
[WhiteElo "2376"]
[BlackElo "2254"]
[PlyCount "99"]
[EventDate "2025.03.29"]
[EventType "swiss"]
[EventCountry "GRE"]
[SourceTitle "playchess.com"]
[Source "ChessBase"]
[SourceQuality "1"]
[TimeControl "40/5400+30:1800+30"]

1. e4 {[%emt 0:00:03]} c5 {[%emt 0:00:08]} 2. b3 {[%emt 0:00:22]} Nf6 {[%emt 0:03:36]} 3. e5 {[%emt 0:00:12]} Nd5 {[%emt 0:00:47]} 4. Nf3 {[%emt 0:00:07]} Nc6 {[%emt 0:03:00]} 5. Bb2 {[%emt 0:00:07]} e6 {[%emt 0:08:40]} 6. g3 {[%emt 0:04:19]} Be7 {[%emt 0:02:17]} 7. c4 {[%emt 0:00:55]} Ndb4 {[%emt 0:05:44]} 8. a3 {[%emt 0:02:18]} Na6 {[%emt 0:00:08]} 9. Bg2 {[%emt 0:02:10]} O-O {[%emt 0:01:20]} 10. O-O {[%emt 0:00:22]} f6 {[%emt 0:06:07]} 11. exf6 {[%emt 0:10:43]} Bxf6 {[%emt 0:00:23]} 12. Bxf6 {[%emt 0:00:07]} Qxf6 {[%emt 0:00:25]} 13. Nc3 {[%emt 0:00:06]} Nd4 {[%emt 0:13:28]} 14. Nxd4 {[%emt 0:00:12]} cxd4 {[%emt 0:08:09]} 15. Ne4 {[%emt 0:05:45]} Qe7 {[%emt 0:02:25]} 16. f4 {[%emt 0:03:10]} d5 {[%emt 0:04:23]} 17. cxd5 {[%emt 0:04:13]} exd5 {[%emt 0:00:04]} 18. Ng5 {[%emt 0:00:05]} Nc7 {[%emt 0:03:04]} 19. Re1 {[%emt 0:00:22]} Qd6 {[%emt 0:01:57]} 20. b4 {[%emt 0:13:22]} Bf5 {[%emt 0:03:43]} 21. Rc1 {[%emt 0:03:08]} Rfe8 {[%emt 0:06:22]} 22. Qb3 {[%emt 0:07:18]} Rxe1+ {[%emt 0:10:28]} 23. Rxe1 {[%emt 0:00:06]} Rd8 {[%emt 0:00:36]} 24. Re5 {[%emt 0:01:09]} g6 {[%emt 0:01:17]} 25. h3 {[%emt 0:03:17]} Qc6 {[%emt 0:02:21]} 26. Kh2 {[%emt 0:02:14]} Bc2 {[%emt 0:01:54]} 27. Qb2 {[%emt 0:01:52]} Qc4 {[%emt 0:03:28]} 28. Re7 {[%emt 0:02:24]} Re8 {[%emt 0:04:35]} 29. Rxe8+ {[%emt 0:04:27]} Nxe8 {[%emt 0:00:03]} 30. Bxd5+ {[%emt 0:00:07]} Qxd5 {[%emt 0:00:13]} 31. Qxc2 {[%emt 0:00:03]} Kg7 {[%emt 0:04:08]} 32. Qc8 {[%emt 0:01:16]} Nf6 {[%emt 0:00:42]} 33. Qe6 {[%emt 0:00:35]} Qxe6 {[%emt 0:00:33]} 34. Nxe6+ {[%emt 0:00:07]} Kf7 {[%emt 0:00:08]} 35. Nxd4 {[%emt 0:00:12]} Ne4 {[%emt 0:00:15]} 36. Nf3 {[%emt 0:04:12]} Ke7 {[%emt 0:00:36]} 37. Kg2 {[%emt 0:00:17]} Kd6 {[%emt 0:00:11]} 38. d3 {[%emt 0:00:45]} Nc3 {[%emt 0:00:33]} 39. Ng5 {[%emt 0:00:39]} Nb1 {[%emt 0:00:18]} 40. a4 {[%emt 0:00:00]} Kd5 {[%emt 0:00:00]} 41. Nxh7 {[%emt 0:04:15]} Nc3 {[%emt 0:00:58]} 42. Nf8 {[%emt 0:00:23]} Nxa4 {[%emt 0:00:11]} 43. Nxg6 {[%emt 0:00:03]} Nb2 {[%emt 0:00:30]} 44. Ne5 {[%emt 0:00:18]} b6 {[%emt 0:00:46]} 45. h4 {[%emt 0:00:07]} a5 {[%emt 0:00:34]} 46. bxa5 {[%emt 0:00:34]} bxa5 {[%emt 0:00:02]} 47. h5 {[%emt 0:01:51]} Ke6 {[%emt 0:00:30]} 48. h6 {[%emt 0:00:37]} Kf6 {[%emt 0:00:11]} 49. g4 {[%emt 0:00:17]} a4 {[%emt 0:00:17]} 50. g5+ {[%emt 0:00:06]} 1-0

[Event "European Womens-ch 2025"]
[Site "Rhodes"]
[Date "2025.04.08"]
[Round "8.11"]
[White "Avramidou, Anastasia"]
[Black "Socko, Monika"]
[Result "1-0"]
[Annotator "RC"]
[ECO "B10"]
[WhiteElo "2275"]
[BlackElo "2369"]
[PlyCount "57"]
[EventDate "2025.03.29"]
[EventType "swiss"]
[EventCountry "GRE"]
[SourceTitle "playchess.com"]
[Source "ChessBase"]
[SourceQuality "1"]
[TimeControl "40/5400+30:1800+30"]

1. e4 {[%emt 0:00:05]} c6 {[%emt 0:00:26]} 2. Nf3 {[%emt 0:00:13]} d5 {[%emt 0:00:06]} 3. d3 {[%emt 0:00:13]} dxe4 {[%emt 0:01:40]} 4. dxe4 {[%emt 0:00:08]} Qxd1+ {[%emt 0:00:04]} 5. Kxd1 {[%emt 0:00:11]} Bg4 {[%emt 0:00:12]} 6. Be2 {[%emt 0:00:16]} Nf6 {[%emt 0:00:49]} 7. Nbd2 {[%emt 0:00:36]} Bxf3 {[%emt 0:02:18]} 8. gxf3 {[%emt 0:03:18]} e5 {[%emt 0:03:38]} 9. Nc4 {[%emt 0:02:45]} Nbd7 {[%emt 0:01:12]} 10. c3 {[%emt 0:03:23]} Nh5 {[%emt 0:16:12]} 11. Kc2 {[%emt 0:07:51]} f6 {[%emt 0:13:46]} 12. Rd1 {[%emt 0:07:16]} O-O-O {[%emt 0:04:59]} 13. Be3 {[%emt 0:02:45]} b6 {[%emt 0:00:03]} 14. a4 {[%emt 0:07:34]} Nf4 {[%emt 0:13:01]} 15. Bf1 {[%emt 0:00:57]} Be7 {[%emt 0:03:57]} 16. a5 {[%emt 0:08:08]} Kb7 {[%emt 0:00:15]} 17. axb6 {[%emt 0:00:34]} axb6 {[%emt 0:01:18]} 18. Ra2 {[%emt 0:02:25]} c5 {[%emt 0:07:35]} 19. Na3 {[%emt 0:16:36]} Nb8 {[%emt 0:01:06]} 20. Rda1 {[%emt 0:00:09]} Nc6 {[%emt 0:00:24]} 21. Nc4 {[%emt 0:06:06]} Bd6 {[%emt 0:05:22]} 22. b4 {[%emt 0:12:37]} cxb4 {[%emt 0:14:24]} 23. Bxb6 {[%emt 0:01:03]} Rd7 {[%emt 0:00:30]} 24. Be3 {[%emt 0:03:29]} Bb8 {[%emt 0:01:14]} 25. Na5+ {[%emt 0:01:54]} Nxa5 {[%emt 0:02:09]} 26. Rxa5 {[%emt 0:00:05]} Rd6 {[%emt 0:00:19]} 27. Rb5+ {[%emt 0:01:14]} Kc7 {[%emt 0:00:16]} 28. Rxb4 {[%emt 0:00:44]} Rhd8 {[%emt 0:02:36]} 29. Rab1 {[%emt 0:01:07]} 1-0

[Event "European Womens-ch 2025"]
[Site "Rhodes"]
[Date "2025.04.08"]
[Round "8.12"]
[White "Kiolbasa, Oliwia"]
[Black "Jarocka, Liwia"]
[Result "*"]
[Annotator "RC"]
[ECO "A08"]
[WhiteElo "2360"]
[BlackElo "2231"]
[PlyCount "52"]
[EventDate "2025.03.29"]
[EventType "swiss"]
[EventCountry "GRE"]
[SourceTitle "playchess.com"]
[Source "ChessBase"]
[SourceQuality "1"]
[TimeControl "40/5400+30:1800+30"]

1. Nf3 {[%emt 0:00:31]} d5 {[%emt 0:00:25]} 2. g3 {[%emt 0:00:19]} Nf6 {[%emt 0:01:24]} 3. Bg2 {[%emt 0:00:32]} e6 {[%emt 0:00:10]} 4. O-O {[%emt 0:00:38]} c5 {[%emt 0:00:15]} 5. d3 {[%emt 0:01:15]} Nc6 {[%emt 0:00:15]} 6. a4 {[%emt 0:00:29]} Be7 {[%emt 0:05:13]} 7. Bf4 {[%emt 0:00:44]} O-O {[%emt 0:01:47]} 8. e4 {[%emt 0:00:30]} dxe4 {[%emt 0:03:27]} 9. dxe4 {[%emt 0:00:11]} Qxd1 {[%emt 0:00:10]} 10. Rxd1 {[%emt 0:00:09]} Nxe4 {[%emt 0:00:36]} 11. Ne5 {[%emt 0:01:13]} Nxe5 {[%emt 0:02:47]} 12. Bxe5 {[%emt 0:00:37]} Nf6 {[%emt 0:13:23]} 13. Nc3 {[%emt 0:05:55]} a5 {[%emt 0:09:04]} 14. Nb5 {[%emt 0:14:41]} Ra6 {[%emt 0:12:49]} 15. Ra3 {[%emt 0:08:20]} Ne8 {[%emt 0:07:21]} 16. Rc3 {[%emt 0:10:28]} f6 {[%emt 0:14:41]} 17. Bf4 {[%emt 0:00:14]} g5 {[%emt 0:00:08]} 18. Be3 {[%emt 0:02:35]} b6 {[%emt 0:00:03]} 19. Rcd3 {[%emt 0:05:44]} Ng7 {[%emt 0:01:07]} 20. Rd7 {[%emt 0:07:24]} Bxd7 {[%emt 0:08:55]} 21. Rxd7 {[%emt 0:00:08]} Nf5 {[%emt 0:00:33]} 22. g4 {[%emt 0:03:11]} Nxe3 {[%emt 0:02:05]} 23. fxe3 {[%emt 0:00:17]} Kf7 {[%emt 0:00:06]} 24. Nd6+ {[%emt 0:02:29]} Kg8 {[%emt 0:01:32]} 25. Rxe7 {[%emt 0:00:33]} b5 {[%emt 0:00:13]} 26. Nxb5 {[%emt 0:02:21]} Rd8 {[%emt 0:00:38]} *

[Event "European Womens-ch 2025"]
[Site "Rhodes"]
[Date "2025.04.08"]
[Round "8.13"]
[White "Savina, Anastasia"]
[Black "Urh, Zala"]
[Result "1/2-1/2"]
[Annotator "RC"]
[ECO "E49"]
[WhiteElo "2331"]
[BlackElo "2244"]
[PlyCount "101"]
[EventDate "2025.03.29"]
[EventType "swiss"]
[EventCountry "GRE"]
[SourceTitle "playchess.com"]
[Source "ChessBase"]
[SourceQuality "1"]
[TimeControl "40/5400+30:1800+30"]

1. d4 {[%emt 0:02:08]} Nf6 {[%emt 0:00:04]} 2. c4 {[%emt 0:00:05]} e6 {[%emt 0:00:03]} 3. Nc3 {[%emt 0:00:11]} Bb4 {[%emt 0:00:05]} 4. e3 {[%emt 0:00:04]} O-O {[%emt 0:00:25]} 5. Bd3 {[%emt 0:00:19]} d5 {[%emt 0:00:42]} 6. a3 {[%emt 0:00:05]} Bxc3+ {[%emt 0:00:20]} 7. bxc3 {[%emt 0:00:05]} dxc4 {[%emt 0:00:11]} 8. Bxc4 {[%emt 0:00:04]} c5 {[%emt 0:00:17]} 9. Ne2 {[%emt 0:00:07]} Qc7 {[%emt 0:00:32]} 10. Bd3 {[%emt 0:00:08]} Nc6 {[%emt 0:00:37]} 11. O-O {[%emt 0:01:17]} e5 {[%emt 0:01:02]} 12. Ng3 {[%emt 0:00:06]} Be6 {[%emt 0:01:32]} 13. f4 {[%emt 0:01:54]} exd4 {[%emt 0:00:52]} 14. cxd4 {[%emt 0:00:05]} Rad8 {[%emt 0:01:40]} 15. Rb1 {[%emt 0:01:20]} a6 {[%emt 0:01:01]} 16. h3 {[%emt 0:00:43]} cxd4 {[%emt 0:02:38]} 17. e4 {[%emt 0:00:59]} Nd7 {[%emt 0:02:07]} 18. Qc2 {[%emt 0:05:35]} Rc8 {[%emt 0:02:02]} 19. e5 {[%emt 0:31:49]} Ncxe5 {[%emt 0:03:55]} 20. Bxh7+ {[%emt 0:27:41]} Kh8 {[%emt 0:01:47]} 21. Qd1 {[%emt 0:02:17]} Kxh7 {[%emt 0:05:27]} 22. fxe5 {[%emt 0:00:05]} Qxe5 {[%emt 0:03:42]} 23. Rf4 {[%emt 0:06:11]} Kg8 {[%emt 0:10:48]} 24. Kh2 {[%emt 0:03:26]} Nf6 {[%emt 0:18:42]} 25. Qxd4 {[%emt 0:11:47]} Qxd4 {[%emt 0:01:23]} 26. Rxd4 {[%emt 0:00:02]} Rc2 {[%emt 0:00:04]} 27. Bg5 {[%emt 0:03:02]} b5 {[%emt 0:07:23]} 28. Bxf6 {[%emt 0:02:17]} gxf6 {[%emt 0:00:01]} 29. Rf1 {[%emt 0:00:31]} Rfc8 {[%emt 0:02:38]} 30. Nf5 {[%emt 0:00:34]} Kf8 {[%emt 0:12:09]} 31. Rh4 {[%emt 0:00:29]} Bxf5 {[%emt 0:00:06]} 32. Rxf5 {[%emt 0:00:11]} R8c6 {[%emt 0:00:06]} 33. a4 {[%emt 0:00:47]} Rb2 {[%emt 0:00:50]} 34. axb5 {[%emt 0:00:32]} axb5 {[%emt 0:00:01]} 35. Rhf4 {[%emt 0:00:31]} b4 {[%emt 0:12:13]} 36. Rxf6 {[%emt 0:00:27]} Rxf6 {[%emt 0:00:05]} 37. Rxf6 {[%emt 0:00:02]} b3 {[%emt 0:03:03]} 38. Rb6 {[%emt 0:00:09]} Rb1 {[%emt 0:00:18]} 39. Kg3 {[%emt 0:01:05]} Kg7 {[%emt 0:01:25]} 40. Kh4 {[%emt 0:00:00]} b2 {[%emt 0:00:00]} 41. Kh5 {[%emt 0:19:27]} f5 {[%emt 0:10:09]} 42. Kg5 {[%emt 0:00:39]} Kf7 {[%emt 0:00:29]} 43. h4 {[%emt 0:01:22]} f4 {[%emt 0:01:44]} 44. Kf5 {[%emt 0:01:49]} Kg7 {[%emt 0:06:16]} 45. h5 {[%emt 0:01:23]} Rh1 {[%emt 0:08:12]} 46. Rb7+ {[%emt 0:00:57]} Kh6 {[%emt 0:01:05]} 47. Rxb2 {[%emt 0:00:10]} Rxh5+ {[%emt 0:00:04]} 48. Kxf4 {[%emt 0:00:56]} Ra5 {[%emt 0:00:11]} 49. Rb6+ {[%emt 0:00:46]} Kg7 {[%emt 0:00:05]} 50. g4 {[%emt 0:00:12]} Rc5 {[%emt 0:00:46]} 51. g5 {[%emt 0:00:12]} 1/2-1/2

[Event "European Womens-ch 2025"]
[Site "Rhodes"]
[Date "2025.04.08"]
[Round "8.14"]
[White "Unuk, Laura"]
[Black "Velikic, Adela"]
[Result "0-1"]
[Annotator "RC"]
[ECO "D02"]
[WhiteElo "2301"]
[BlackElo "2214"]
[PlyCount "60"]
[EventDate "2025.03.29"]
[EventType "swiss"]
[EventCountry "GRE"]
[SourceTitle "playchess.com"]
[Source "ChessBase"]
[SourceQuality "1"]
[TimeControl "40/5400+30:1800+30"]

1. d4 {[%emt 0:02:04]} d5 {[%emt 0:00:06]} 2. Bf4 {[%emt 0:00:35]} e6 {[%emt 0:06:09]} 3. e3 {[%emt 0:04:25]} Bd6 {[%emt 0:00:46]} 4. Nf3 {[%emt 0:00:42]} Bxf4 {[%emt 0:05:55]} 5. exf4 {[%emt 0:00:07]} Qd6 {[%emt 0:04:08]} 6. Qd2 {[%emt 0:06:04]} Nf6 {[%emt 0:10:51]} 7. Bd3 {[%emt 0:01:43]} b6 {[%emt 0:06:13]} 8. Ne5 {[%emt 0:10:48]} O-O {[%emt 0:07:33]} 9. Nc3 {[%emt 0:06:19]} c5 {[%emt 0:07:07]} 10. h4 {[%emt 0:16:03]} Ba6 {[%emt 0:07:17]} 11. Bxa6 {[%emt 0:09:14]} Nxa6 {[%emt 0:00:22]} 12. O-O-O {[%emt 0:00:18]} Rfc8 {[%emt 0:14:03]} 13. h5 {[%emt 0:00:35]} cxd4 {[%emt 0:04:42]} 14. Qxd4 {[%emt 0:03:51]} Qc5 {[%emt 0:03:02]} 15. f3 {[%emt 0:10:58]} Nb4 {[%emt 0:03:37]} 16. h6 {[%emt 0:05:37]} Nxa2+ {[%emt 0:01:08]} 17. Kb1 {[%emt 0:00:34]} Qxd4 {[%emt 0:03:25]} 18. Rxd4 {[%emt 0:00:05]} Nxc3+ {[%emt 0:00:12]} 19. bxc3 {[%emt 0:00:04]} Rxc3 {[%emt 0:01:13]} 20. hxg7 {[%emt 0:00:44]} Kxg7 {[%emt 0:02:39]} 21. g4 {[%emt 0:00:30]} Rd8 {[%emt 0:03:22]} 22. Kb2 {[%emt 0:06:54]} Rc7 {[%emt 0:00:40]} 23. Rd2 {[%emt 0:03:09]} Nd7 {[%emt 0:01:44]} 24. Nxf7 {[%emt 0:01:50]} Kxf7 {[%emt 0:01:21]} 25. Rxh7+ {[%emt 0:00:04]} Ke8 {[%emt 0:02:16]} 26. g5 {[%emt 0:03:21]} Rdc8 {[%emt 0:00:42]} 27. g6 {[%emt 0:05:07]} Nf6 {[%emt 0:00:21]} 28. Rdh2 {[%emt 0:01:24]} Kf8 {[%emt 0:01:50]} 29. c3 {[%emt 0:01:16]} Nxh7 {[%emt 0:00:32]} 30. gxh7 {[%emt 0:00:26]} Kg7 {[%emt 0:00:13]} 0-1

[Event "European Womens-ch 2025"]
[Site "Rhodes"]
[Date "2025.04.08"]
[Round "8.15"]
[White "Radeva, Viktoria"]
[Black "Rodshtein, Tereza"]
[Result "1-0"]
[Annotator "RC"]
[ECO "C47"]
[WhiteElo "2297"]
[BlackElo "2171"]
[PlyCount "73"]
[EventDate "2025.03.29"]
[EventType "swiss"]
[EventCountry "GRE"]
[SourceTitle "playchess.com"]
[Source "ChessBase"]
[SourceQuality "1"]
[TimeControl "40/5400+30:1800+30"]

1. e4 {[%emt 0:00:03]} e5 {[%emt 0:00:11]} 2. Nf3 {[%emt 0:00:06]} Nc6 {[%emt 0:00:07]} 3. Nc3 {[%emt 0:00:13]} Nf6 {[%emt 0:01:17]} 4. a3 {[%emt 0:00:08]} d5 {[%emt 0:07:11]} 5. Bb5 {[%emt 0:00:05]} dxe4 {[%emt 0:07:42]} 6. Nxe5 {[%emt 0:00:10]} Qd6 {[%emt 0:08:07]} 7. d4 {[%emt 0:00:29]} exd3 {[%emt 0:04:13]} 8. O-O {[%emt 0:00:09]} Be6 {[%emt 0:13:24]} 9. Bf4 {[%emt 0:07:48]} Qc5 {[%emt 0:05:42]} 10. Qxd3 {[%emt 0:10:28]} Rd8 {[%emt 0:03:02]} 11. Qe2 {[%emt 0:15:08]} a6 {[%emt 0:07:23]} 12. Nxc6 {[%emt 0:05:20]} bxc6 {[%emt 0:00:06]} 13. Be3 {[%emt 0:01:43]} Qd6 {[%emt 0:08:53]} 14. Rad1 {[%emt 0:00:28]} axb5 {[%emt 0:01:13]} 15. Rxd6 {[%emt 0:01:14]} Bxd6 {[%emt 0:00:11]} 16. Bg5 {[%emt 0:06:07]} O-O {[%emt 0:00:23]} 17. Bxf6 {[%emt 0:01:07]} gxf6 {[%emt 0:00:02]} 18. Ne4 {[%emt 0:06:06]} Be7 {[%emt 0:03:21]} 19. Qf3 {[%emt 0:02:06]} f5 {[%emt 0:04:39]} 20. Qg3+ {[%emt 0:01:06]} Kh8 {[%emt 0:00:02]} 21. Qe5+ {[%emt 0:02:39]} Kg8 {[%emt 0:00:01]} 22. Qxc7 {[%emt 0:02:16]} fxe4 {[%emt 0:06:00]} 23. Qxe7 {[%emt 0:01:01]} Rd5 {[%emt 0:00:07]} 24. h4 {[%emt 0:01:30]} Rfd8 {[%emt 0:01:15]} 25. Re1 {[%emt 0:01:05]} Rd1 {[%emt 0:00:15]} 26. Rxd1 {[%emt 0:00:34]} Rxd1+ {[%emt 0:00:02]} 27. Kh2 {[%emt 0:00:05]} Bd5 {[%emt 0:02:44]} 28. Qg5+ {[%emt 0:02:21]} Kf8 {[%emt 0:00:33]} 29. h5 {[%emt 0:00:25]} Rf1 {[%emt 0:01:33]} 30. h6 {[%emt 0:02:26]} Ke8 {[%emt 0:00:09]} 31. Qf5 {[%emt 0:03:05]} Ke7 {[%emt 0:01:14]} 32. b3 {[%emt 0:05:08]} Kd6 {[%emt 0:01:22]} 33. c4 {[%emt 0:00:42]} bxc4 {[%emt 0:00:16]} 34. bxc4 {[%emt 0:00:05]} Bxc4 {[%emt 0:00:21]} 35. Qxe4 {[%emt 0:00:30]} Bd5 {[%emt 0:00:26]} 36. Qxh7 {[%emt 0:00:35]} Rxf2 {[%emt 0:00:26]} 37. Qg7 {[%emt 0:00:11]} 1-0